Cogmind - Beta 13 @@@ ROGUE MODE // 2024.05.01 @ 09:34:43 Player: BionicBot Result: Destroyed self via exploding Nuclear Reactor Performance ------------- Evolutions (0) 0 Regions Visited (1) 200 Robots Destroyed (23) 115 Value Destroyed (685) 685 Prototype IDs (2) 40 Alien Tech Used (0) 0 Bonus (0) 0 TOTAL SCORE: 1040 Bonus ------- None Cogmind --------- Core Integrity 0/250 Matter 290/300 Energy 250/250 System Corruption 0% Temperature Cool (0) Movement Walking (120) Location -10/Materials Parts ------- > --- POWER (1) -------- Ion Engine > --- PROPULSION (2) --- Aluminum Leg Aluminum Leg > --- UTILITY (2) ------ Structural Scanner > --- WEAPON (2) ------- Small Laser Light Assault Rifle > --- INVENTORY (5) ---- Ion Engine Aluminum Leg Improved Heat Sink Tractor Beam EM Pulse Gun Peak State ------------ > --- POWER ------------ Ion Engine > --- PROPULSION ------- Aluminum Leg Aluminum Leg > --- UTILITY ---------- Improved Heat Sink Tractor Beam > --- WEAPON ----------- Small Laser Light Assault Rifle > --- INVENTORY -------- Aluminum Leg Aluminum Leg Aluminum Leg Aluminum Leg EM Pulse Gun [Rating: 9] Favorites ----------- Power Ion Engine Engine Ion Engine Propulsion Aluminum Leg Leg Aluminum Leg Utility Light Armor Plating Device Tractor Beam Protection Light Armor Plating Weapon Light Assault Rifle Energy Gun Small Laser Ballistic Gun Light Assault Rifle Build | -11 -10 ------- Run | Yrd Mat Slots Evolved . | . . Power . | . . Propulsion . | . . Utility . | . . Weapon . | . . Parts Attached 31 | 6 25 Power 3 | 1 2 Engine 3 | 1 2 Core . | . . Reactor . | . . Propulsion 15 | 2 13 Treads . | . . Leg 15 | 2 13 Wheel . | . . Hover . | . . Flight . | . . Utility 7 | . 7 Device 5 | . 5 Storage . | . . Processor . | . . Hackware . | . . Protection 2 | . 2 Artifact . | . . Weapon 6 | 3 3 Energy Gun 3 | 1 2 Energy Cannon . | . . Ballistic Gun 3 | 2 1 Ballistic Cannon . | . . Launcher . | . . Special Weapon . | . . Impact Weapon . | . . Slashing Weapon . | . . Piercing Weapon . | . . Special Melee Weapon . | . . Unidentified Prototypes . | . . Parts Lost 3 | . 3 Power . | . . Propulsion . | . . Utility 3 | . 3 Weapon . | . . Highest Loss Streak 1 | . 1 To Critical Strikes . | . . Average Slot Usage (%) 93 | . 93 Engine 14 | . 14 Leg 28 | . 28 Device 14 | . 14 Protection 6 | . 6 Energy Gun 10 | . 10 Ballistic Gun 17 | . 17 Naked Turns . | . . Heaviest Build 13 | 8 13 Greatest Support 20 | 20 20 Greatest Overweight (x) . | . . Average Overweight (x) . | . . Largest Inventory Capacity 5 | 5 5 Average Capacity 5 | 5 5 Most Carried 5 | 1 5 Average Carried 3 | . 3 Final Capacity 5 | 5 5 Final Carried 5 | 1 5 Class Distribution -------------------- 53% | Mutant 46% | Scavenger-Mutant Dominant Class ---------------- Mutant | -10/Materials Resources | -11 -10 ----------- Run | Yrd Mat Matter Collected 735 | 195 540 Remotely 168 | . 168 Salvage Created 995 | . 995 Parts 56 | . 56 Haulers Intercepted 2 | . 2 Recyclers Shooed . | . . Parts Field Recycled . | . . Retrieved Matter . | . . Parts Self-Destructed . | . . Prevented . | . . Kills | -11 -10 ------- Run | Yrd Mat Combat Hostiles Destroyed 17 | . 17 Guns 17 | . 17 Classes Destroyed 5 | . 5 Hauler 2 | . 2 Recycler 1 | . 1 Operator 1 | . 1 Watcher 2 | . 2 Grunt 17 | . 17 Best Kill Streak 3 | . 3 Combat Bots Only 3 | . 3 Max Kills in Single Turn 1 | . 1 Gunslinging . | . . Exploded . | . . Melee . | . . Uniques/NPCs Destroyed . | . . Combat | -11 -10 -------- Run | Yrd Mat Hostile Shots Fired 120 | . 120 Missed 30 | . 30 Damage Taken 1203 | . 1203 Core 280 | . 280 Absorbed by Shields . | . . Core Remaining (%) 100 | 100 . Volleys Fired 126 | . 126 Largest 2 | . 2 Hottest 60 | . 60 Shots Fired 246 | . 246 Gun 246 | . 246 Cannon . | . . Launcher . | . . Special . | . . Kinetic 169 | . 169 Thermal 77 | . 77 Explosive . | . . Electromagnetic . | . . Robot Hit Streak 16 | . 16 Robot Miss Streak 8 | . 8 Penetration Max . | . . Secondary Targets . | . . Shots Hit Robots 151 | . 151 Core Hits 51 | . 51 Critical Kills . | . . Critical Parts Destroyed . | . . Critical Strikes . | . . Melee Attacks . | . . Impact . | . . Slashing . | . . Piercing . | . . Sneak Attacks . | . . Combat Hostiles . | . . Follow-up Attacks . | . . Damage Inflicted 1512 | . 1512 Guns 1498 | . 1498 Cannons . | . . Explosions . | . . Melee . | . . Ramming 14 | . 14 Kinetic 1018 | . 1018 Thermal 480 | . 480 Explosive . | . . Electromagnetic . | . . Impact . | . . Slashing . | . . Piercing . | . . Highest Corruption . | . . Average Corruption . | . . Corruption Purged . | . . Corruption Blocked . | . . Overload Shots . | . . Overflow Damage 2 | . 2 Projectiles . | . . Explosions . | . . Melee 2 | . 2 Knockbacks . | . . Impact . | . . Kinetic . | . . Secondary . | . . Self-Inflicted Damage 101 | . 101 Shots 1 | . 1 Rammed . | . . Targets Rammed 4 | . 4 Kicked 4 | . 4 Crushed . | . . Highest Temperature 390 | . 390 Average Temperature 107 | . 107 Received Heat Transfer 648 | . 648 Effects 3 | . 3 Shutdowns 1 | . 1 Energy Bleed 1 | . 1 Interference 1 | . 1 Siege Activations . | . . Robots Corrupted . | . . Combat Hostiles . | . . Parts Fried 1 | . 1 Impact Corruptions 1 | . 1 Robots Melted . | . . Combat Hostiles . | . . Parts Melted . | . . Heat Transferred 1125 | . 1125 Parts Sabotaged . | . . Parts Stolen . | . . Parts Stripped . | . . Power Chain Reactions . | . . Alert | -11 -10 ------- Run | Yrd Mat Peak Influence 204 | . 204 Initial . | . . Average 75 | . 79 Maximum Alert Level 1 | . 1 Low Security (%) 96 | 100 95 Level 1 3 | . 4 Level 2 . | . . Level 3 . | . . Level 4 . | . . Level 5 . | . . High Security . | . . Max Security . | . . Squads Dispatched 5 | . 5 Investigation 2 | . 2 Extermination . | . . Reinforcement 3 | . 3 Assault . | . . Garrison . | . . Intercept . | . . Searches Triggered . | . . Construction Impeded . | . . Haulers Reinforced . | . . Active Scanning Responses . | . . Cargo Convoy Interrupts . | . . Stealth | -11 -10 --------- Run | Yrd Mat Distress Signals 2 | . 2 Communications Jammed . | . . Distress Signals . | . . Times Spotted 31 | . 31 Peak Tracking Total 4 | . 4 Tactical Retreats 1 | . 1 Traps | -11 -10 ------- Run | Yrd Mat Traps Triggered 1 | . 1 Indirectly . | . . Trap Hack Attempts . | . . Triggered . | . . Disarmed . | . . Reprogrammed . | . . Reused . | . . Traps Extracted . | . . Installed . | . . Triggered . | . . Machines | -11 -10 ---------- Run | Yrd Mat Machines Disabled 1 | . 1 Max in Single Turn 1 | . 1 Machines Repaired . | . . Machines Dismantled . | . . Machines Sabotaged . | . . Overloaded Fab Kills . | . . Hacking | -11 -10 --------- Run | Yrd Mat Machines Accessed 3 | . 3 Terminals 3 | . 3 Fabricators . | . . Repair Stations . | . . Recycling Units . | . . Scanalyzers . | . . Garrison Access . | . . Total Hacks 5 | . 5 Successful 2 | . 2 Failed 3 | . 3 Catastrophic 1 | . 1 Database Lockouts . | . . Manual . | . . Terminals 5 | . 5 Fabricators . | . . Repair Stations . | . . Recycling Units . | . . Scanalyzers . | . . Garrison Access . | . . Terminal Hacks 2 | . 2 Prototype ID Bank 1 | . 1 Locate Traps 1 | . 1 Fabricator Hacks . | . . Repair Station Hacks . | . . Recycling Unit Hacks . | . . Scanalyzer . | . . Garrison Access Hacks . | . . Unauthorized Hacks . | . . Terminals . | . . Fabricators . | . . Repair Stations . | . . Recycling Units . | . . Scanalyzers . | . . Garrison Access . | . . Data Cores Recovered . | . . Used . | . . Hacking Detections 1 | . 1 Full Trace Events 1 | . 1 Feedback Events . | . . Feedback Blocked . | . . Robot Schematics Acquired . | . . Robots Built . | . . Authchips . | . . Time . | . . Total Robot Build Rating . | . . Part Schematics Acquired . | . . Parts Built . | . . Authchips . | . . Time . | . . Total Part Build Rating . | . . Parts Repaired . | . . Time . | . . Parts Recycled . | . . Recycled Matter . | . . Retrieved Matter . | . . Retrieved Components . | . . Parts Scanalyzed . | . . Part Schematics Acquired . | . . Parts Damaged . | . . Bothacking | -11 -10 ------------ Run | Yrd Mat Used RIF Installer . | . . Robots Hacked . | . . Non-combat . | . . Combat . | . . Robot Hacks Applied . | . . Relay Couplers Released . | . . Fabnet Peak Effective % . | . . Robots Rewired . | . . Allies Hacked . | . . Hacks Repelled . | . . Allies | -11 -10 -------- Run | Yrd Mat Total Allies . | . . Largest Group . | . . Highest-Rated Group . | . . Highest-Rated Ally . | . . Total Orders . | . . Ally Attacks . | . . Total Damage . | . . Kills . | . . Allies Corrupted . | . . Allies Melted . | . . Intel | -11 -10 ------- Run | Yrd Mat Robot Analysis Total . | . . Derelict Logs Recovered . | . . Drone Launches . | . . Drone Recoveries . | . . Exploration | -11 -10 ------------- Run | Yrd Mat Turns Passed 1249 | 55 1194 Spaces Moved 656 | 40 616 Core 3 | 3 . Treads . | . . Legs 653 | 37 616 Wheels . | . . Hover . | . . Flight . | . . Fastest Speed 50 | 50 120 Average Speed 119 | 114 120 Slowest Speed 120 | 120 120 Overloaded Moves . | . . Propulsion Burnouts . | . . Robots Hopped . | . . Cave-ins Triggered . | . . Exploration Rate (%) 42 | 5 79 Regions Visited 1 Branch Regions . Pre-discovered Areas . | . . Known Exits Taken . | . . Unknown Exits Taken 1 | 1 . Scrap Searched . | . . Spaces Dug . | . . Terrain Destroyed . | . . Melee . | . . Projectile . | . . AOE . | . . Terrain Rammed . | . . Walls Destroyed . | . . Machines Disabled . | . . Actions | -11 -10 --------- Run | Yrd Mat Total 899 | 46 853 Wait 60 | . 60 Move 655 | 39 616 Hop . | . . Pick Up 3 | 1 2 Fast Attach 11 | 5 6 Attach 1 | . 1 Detach 2 | . 2 Swap 19 | 1 18 Drop 18 | . 18 Fire 126 | . 126 Melee . | . . Ram . | . . Kick 4 | . 4 Crush . | . . Escape Stasis . | . . Rewire . | . . Trap . | . . Miscellaneous . | . . Route ------- -11/Scrapyard -10/Materials (discovered 4 exits: [*Mat x3] / [*Min]) History --------- Turn | Location | Event 13 | -11/Scrapyard | Discovered new exit (range 16) 56 | -11/Scrapyard | Entered Materials 485 | -10/Materials | Discovered new exit (range 7) 554 | -10/Materials | Build established: Scavenger-Mutant 721 | -10/Materials | Core integrity fell below 50% 858 | -10/Materials | Discovered new exit (range 16) 951 | -10/Materials | Discovered new exit (range 15) 1065 | -10/Materials | Build established: Mutant 1154 | -10/Materials | Core integrity fell below 20% 1217 | -10/Materials | Discovered new exit (range 3) 1250 | -10/Materials | Destroyed self via exploding Nuclear Reactor Last Messages --------------- 01132_ ALERT: Suspicious activity at Terminal M007. Dispatching Investigation squad. 01136_ W-16 Scout sends out distress signal. 01149_ G-34 Mercenary destroyed. 01166_ Acquired 28 matter. 01170_ Dropped Aluminum Leg. 01181_ Dropped Ion Engine. 01183_ Acquired 19 matter. 01192_ Dropped Sml. Laser. 01194_ ALERT: Hostiles spotted, dispatching reinforcements to Terminal M003. 01209_ Lgt. Armor Plating destroyed. 01209_ G-34 Mercenary destroyed. 01213_ Acquired 22 matter. 01217_ EXIT=FOUND 01225_ W-16 Scout destroyed. 01240_ G-34 Mercenary destroyed. 01243_ Acquired 5 matter. 01245_ Dropped Aluminum Leg. 01250_ Nuclear Reactor explodes. Map ----- +----------------------------------------------------+ | ????????????????????????????????# # | | ????????????????????????????????# ##+ | | ????????????????????????????????# ## | | ????????????????????????????????# ## | | ?????????????????? ########### ## | | ?????????????????? ## | | ?????????????????? ## | | ??????????????????" ## | | ???????????? ??" ####*### | | ???????????? """ """" ???#%### | | ??????????## ?? ? ??"""" ????#== | | ??????????## ????????"""?????#! | | ??????????## ""???????? ??????# | | ??????????## """ ?? ?????????# | | ?????????? # """ ? ????####+## | | ?????????? # ????# # | | ?????????? # ???# # | | ?????????? # """ ????# # | | ?????????? # """ ????# # | | ???## # """ ?????# # | | ???#####+### u##???????# + | | ???## ##???????# # | | ???## < = ##???????# # | | ???## %! ##???????# # | | ???#####+### ! ##???????# # | | ???## # %@ ##???????# # | | ???## [!# ##???????# # | | ???## """%# """ ##???????####### | | ???##[ """*# """ ##?############# | | ???## """=# """ | | ???## # | | ???######+## ?t | | ???## ### ###+#???############# | | ???## """[*### ## ???????????????# | | ???## "R"!%### ##??????????????????# | | ???## " " =### ##??????????????????# | | ???## *[/### ## ??????????######## | | ???## ! != ### ## ######### | | ???#######+## ############# | | ??? # T T | | ???? # "" | | ???? + ##### ### ####### | | ???? # ############ # """ # | | ???? # ???? + # """ # < | | ???? ##??????????? # ! + """ # | | ???? ##??????????? # # ### | | ?????????????????? ######+###+# ##? | | ?????????????????? ###[ # ##? | | ?????????????????????# """ # ##? | | ?????????????????????# """ ########? | +----------------------------------------------------+ Best States ------------- Heat Dissipation 39 Energy Generation 10 Energy Capacity 250 Matter Stores 300 Matter Capacity 300 Sight Range 16 Terrain Scan Density 10 Armor Coverage 300 Evasion (%) 55 Item Schematics ----------------- None Robot Schematics ------------------ None Fabricated ------------ Nothing Alien Tech Used ----------------- None Achievements -------------- None Challenges ------------ None Game ------ Seed HeatSystemFacilitator Manual? 0 Play Time 00:14:33 Cumulative 20.5 hours Start 2024.05.01 @ 09:23:24 End 2024.05.01 @ 09:34:43 Sessions 1 Manual Loads 0 Difficulty Rogue Special Mode None Game No. 17 Rogue 17 Adventurer 0 Explorer 0 Win Type - Total 0 Types 0/0/0/0/0/0/0/0/0 Lore% 4 Gallery% 21 Achievement% 17 Wizard Run 0 Options --------- Layout 0 ASCII 0 Keyboard 1 Movement Numpad Keybinds 0 Fullscreen 2 Font 18/SmallcapsGlow Map View 76x50 Zoom Use 0% Tactical HUD 1 Map Filters NONE Filters NONE Steam 1 RUN: 4403d5a8-d147-4927-b01f-942addc79bcd